[Event "*** Titled Tuesday Blitz"]
[Site "Chess.com"]
[Date "2019.03.05"]
[Round "2"]
[White "ajkom197"]
[Black "WPWPWP-2015"]
[Result "0-1"]
[WhiteElo "2388"]
[BlackElo "2401"]
[TimeControl "180+2"]
[EndTime "13:17:45 PST"]
[Termination "WPWPWP-2015 won by resignation"]

1. e4 {[%clk 0:02:55.3]} 1... c5 {[%clk 0:02:59.4]} 2. c3 {[%clk 0:02:54.9]}
2... Nf6 {[%clk 0:02:59.6]} 3. Bd3 {[%clk 0:02:54]} 3... e5 {[%clk 0:02:59.6]}
4. Nf3 {[%clk 0:02:53.7]} 4... Nc6 {[%clk 0:03:00.2]} 5. Bc2 {[%clk 0:02:53.2]}
5... d5 {[%clk 0:02:59.1]} 6. exd5 {[%clk 0:02:52.3]} 6... Qxd5 {[%clk 0:02:59]}
7. d3 {[%clk 0:02:45.5]} 7... Bg4 {[%clk 0:02:57.2]} 8. Nbd2 {[%clk 0:02:43.8]}
8... O-O-O {[%clk 0:02:54.5]} 9. h3 {[%clk 0:02:43.9]} 9... Bh5 {[%clk
0:02:54.5]} 10. c4 {[%clk 0:02:31.1]} 10... Qd7 {[%clk 0:02:48.3]} 11. g4 {[%clk
0:02:28.6]} 11... Bg6 {[%clk 0:02:48.7]} 12. g5 {[%clk 0:02:26.4]} 12... Nh5
{[%clk 0:02:40.7]} 13. Ne4 {[%clk 0:02:26.7]} 13... Qc7 {[%clk 0:02:26.9]} 14.
Be3 {[%clk 0:02:25.6]} 14... Bxe4 {[%clk 0:02:26.1]} 0-1

[Event "*** Titled Tuesday Blitz"]
[Site "Chess.com"]
[Date "2019.03.05"]
[Round "2"]
[White "1random"]
[Black "Alexey_Potapov"]
[Result "0-1"]
[WhiteElo "2548"]
[BlackElo "2710"]
[TimeControl "180+2"]
[EndTime "13:18:42 PST"]
[Termination "Alexey_Potapov won by resignation"]

1. e4 {[%clk 0:03:01.9]} 1... c6 {[%clk 0:03:01.4]} 2. Nf3 {[%clk 0:03:02.4]}
2... d5 {[%clk 0:03:02.6]} 3. Nc3 {[%clk 0:03:04.3]} 3... dxe4 {[%clk
0:03:00.6]} 4. Nxe4 {[%clk 0:03:06.2]} 4... Nf6 {[%clk 0:03:01.9]} 5. Qe2 {[%clk
0:03:07.7]} 5... Bg4 {[%clk 0:02:52.3]} 6. Nxf6+ {[%clk 0:03:03]} 6... gxf6
{[%clk 0:02:53.1]} 7. h3 {[%clk 0:03:02.4]} 7... Bxf3 {[%clk 0:02:48.8]} 8. Qxf3
{[%clk 0:03:02.5]} 8... Qd5 {[%clk 0:02:45.3]} 9. Qe3 {[%clk 0:02:52.3]} 9... e6
{[%clk 0:02:34.2]} 10. b3 {[%clk 0:02:52.4]} 10... Bc5 {[%clk 0:02:25.4]} 11.
Qe2 {[%clk 0:02:49]} 11... Bxf2+ {[%clk 0:02:19.9]} 12. Qxf2 {[%clk 0:01:45.8]}
12... Qe5+ {[%clk 0:02:19.4]} 13. Kd1 {[%clk 0:01:47.2]} 13... Qxa1 {[%clk
0:02:19.3]} 14. c3 {[%clk 0:01:47.9]} 14... Nd7 {[%clk 0:02:07.4]} 0-1

[Event "*** Titled Tuesday Blitz"]
[Site "Chess.com"]
[Date "2019.03.05"]
[Round "2"]
[White "vugarrasulov"]
[Black "wannabe2700"]
[Result "1-0"]
[WhiteElo "2731"]
[BlackElo "2552"]
[TimeControl "180+2"]
[EndTime "13:18:49 PST"]
[Termination "vugarrasulov won by resignation"]

1. e4 {[%clk 0:03:01.9]} 1... e6 {[%clk 0:03:01.1]} 2. d4 {[%clk 0:03:02.6]}
2... d5 {[%clk 0:03:02.5]} 3. Nd2 {[%clk 0:03:04.1]} 3... c5 {[%clk 0:03:02.5]}
4. exd5 {[%clk 0:03:05.1]} 4... Qxd5 {[%clk 0:03:04.4]} 5. Ngf3 {[%clk
0:03:05.6]} 5... cxd4 {[%clk 0:03:05.6]} 6. Bc4 {[%clk 0:03:06.6]} 6... Qd7
{[%clk 0:03:07.1]} 7. O-O {[%clk 0:03:07.6]} 7... Nc6 {[%clk 0:03:08.7]} 8. Nb3
{[%clk 0:03:08.2]} 8... Nf6 {[%clk 0:03:10.3]} 9. Nbxd4 {[%clk 0:03:08.6]} 9...
Nxd4 {[%clk 0:03:12.2]} 10. Nxd4 {[%clk 0:03:10]} 10... a6 {[%clk 0:03:13.5]}
11. Re1 {[%clk 0:03:10.6]} 11... Bc5 {[%clk 0:03:14.9]} 12. Be3 {[%clk 0:03:01]}
12... Qc7 {[%clk 0:03:15.4]} 13. Bg5 {[%clk 0:02:39.9]} 13... O-O {[%clk
0:02:58.2]} 14. Bxf6 {[%clk 0:02:32.4]} 14... gxf6 {[%clk 0:03:00.1]} 15. Qh5
{[%clk 0:02:30.4]} 15... f5 {[%clk 0:02:39.4]} 16. Qg5+ {[%clk 0:02:23.3]} 16...
Kh8 {[%clk 0:02:40.2]} 17. Qf6+ {[%clk 0:02:24.2]} 17... Kg8 {[%clk 0:02:41.8]}
18. Re3 {[%clk 0:02:19]} 18... Be7 {[%clk 0:02:36.8]} 19. Qh6 {[%clk 0:02:18.3]}
19... Qe5 {[%clk 0:01:53.6]} 20. Rxe5 {[%clk 0:02:16.6]} 1-0

[Event "*** Titled Tuesday Blitz"]
[Site "Chess.com"]
[Date "2019.03.05"]
[Round "2"]
[White "ChessicallyInclined"]
[Black "Atanejhad"]
[Result "1-0"]
[WhiteElo "2416"]
[BlackElo "2243"]
[TimeControl "180+2"]
[EndTime "13:20:18 PST"]
[Termination "ChessicallyInclined won on time"]

1. d4 {[%clk 0:03:01.9]} 1... Nf6 {[%clk 0:01:57.3]} 2. c4 {[%clk 0:03:00.8]}
2... e6 {[%clk 0:01:53.8]} 3. Nc3 {[%clk 0:03:01.8]} 3... Bb4 {[%clk 0:01:51.4]}
4. e3 {[%clk 0:03:02.9]} 4... O-O {[%clk 0:01:49.4]} 5. Ne2 {[%clk 0:03:03.9]}
5... d5 {[%clk 0:01:49]} 6. a3 {[%clk 0:03:05.1]} 6... Bxc3+ {[%clk 0:01:47.1]}
7. Nxc3 {[%clk 0:03:06.1]} 7... c5 {[%clk 0:01:42.5]} 8. cxd5 {[%clk 0:03:06.2]}
8... cxd4 {[%clk 0:01:37.9]} 9. Qxd4 {[%clk 0:03:08.1]} 9... exd5 {[%clk
0:01:34.4]} 10. Be2 {[%clk 0:02:50]} 10... Nc6 {[%clk 0:01:35.8]} 11. Qh4 {[%clk
0:02:50.5]} 11... d4 {[%clk 0:01:31.4]} 12. exd4 {[%clk 0:02:24.3]} 12... Qxd4
{[%clk 0:01:25.7]} 13. Qxd4 {[%clk 0:02:22.2]} 13... Nxd4 {[%clk 0:01:22.3]} 14.
O-O {[%clk 0:02:23.5]} 14... Nxe2+ {[%clk 0:00:53.7]} 15. Nxe2 {[%clk
0:02:23.9]} 1-0

[Event "*** Titled Tuesday Blitz"]
[Site "Chess.com"]
[Date "2019.03.05"]
[Round "2"]
[White "AkibaRubi"]
[Black "GataKamsky1974"]
[Result "0-1"]
[WhiteElo "2585"]
[BlackElo "2842"]
[TimeControl "180+2"]
[EndTime "13:20:31 PST"]
[Termination "GataKamsky1974 won by resignation"]

1. b3 {[%clk 0:03:00.9]} 1... d5 {[%clk 0:02:59.8]} 2. Bb2 {[%clk 0:03:02.8]}
2... Nf6 {[%clk 0:03:01.4]} 3. Nf3 {[%clk 0:03:04]} 3... g6 {[%clk 0:03:01.8]}
4. g3 {[%clk 0:03:05.1]} 4... Bg7 {[%clk 0:03:03]} 5. d4 {[%clk 0:03:06.2]} 5...
O-O {[%clk 0:03:03.9]} 6. Bg2 {[%clk 0:03:07.5]} 6... a5 {[%clk 0:03:05.1]} 7.
a4 {[%clk 0:03:02]} 7... c6 {[%clk 0:03:05.2]} 8. O-O {[%clk 0:03:03.9]} 8...
Bf5 {[%clk 0:03:05.6]} 9. c4 {[%clk 0:03:04.2]} 9... Na6 {[%clk 0:03:06.4]} 10.
Nc3 {[%clk 0:03:02.2]} 10... Nb4 {[%clk 0:03:07.3]} 11. Ne5 {[%clk 0:03:01.4]}
11... Bc2 {[%clk 0:03:04.2]} 12. Qd2 {[%clk 0:02:56.4]} 12... Bxb3 {[%clk
0:03:05.4]} 13. c5 {[%clk 0:02:57.7]} 13... Nd7 {[%clk 0:03:04.8]} 14. f4 {[%clk
0:02:54]} 14... f6 {[%clk 0:02:58.2]} 15. Nd3 {[%clk 0:02:49.6]} 15... Bc4
{[%clk 0:02:52.2]} 16. f5 {[%clk 0:02:37.3]} 16... Bxd3 {[%clk 0:02:50.8]} 17.
exd3 {[%clk 0:02:37.7]} 17... gxf5 {[%clk 0:02:52.2]} 18. Rxf5 {[%clk
0:02:36.8]} 18... e6 {[%clk 0:02:53.2]} 19. Rf2 {[%clk 0:02:32.8]} 19... f5
{[%clk 0:02:54.2]} 20. Na2 {[%clk 0:02:29.5]} 20... Nxa2 {[%clk 0:02:53.7]} 21.
Rxa2 {[%clk 0:02:31.4]} 21... b6 {[%clk 0:02:51.4]} 22. Re2 {[%clk 0:02:25.9]}
22... Re8 {[%clk 0:02:50.5]} 23. Bc3 {[%clk 0:02:21.4]} 23... bxc5 {[%clk
0:02:49.2]} 24. dxc5 {[%clk 0:02:23.3]} 24... Bxc3 {[%clk 0:02:37.1]} 25. Qxc3
{[%clk 0:02:23.1]} 25... Rb8 {[%clk 0:02:27.3]} 26. Re1 {[%clk 0:02:14.2]} 26...
Qf6 {[%clk 0:02:23.8]} 27. Qxa5 {[%clk 0:02:13.2]} 27... Qd4+ {[%clk 0:02:24.1]}
28. Kh1 {[%clk 0:02:13.3]} 28... Nxc5 {[%clk 0:02:25.2]} 29. Qa7 {[%clk
0:02:00.8]} 29... Rb7 {[%clk 0:02:20.2]} 30. Qa5 {[%clk 0:02:01.5]} 30... Nxd3
{[%clk 0:02:20.9]} 31. Rf1 {[%clk 0:02:02.7]} 31... Nb4 {[%clk 0:02:19.8]} 32.
Re2 {[%clk 0:01:47.3]} 32... Ra7 {[%clk 0:02:18.6]} 33. Rd2 {[%clk 0:01:48.3]}
33... Rxa5 {[%clk 0:02:17.5]} 34. Rxd4 {[%clk 0:01:49.2]} 34... c5 {[%clk
0:02:17.4]} 35. Rdf4 {[%clk 0:01:48.9]} 35... Nd3 {[%clk 0:02:16.5]} 36. R4f3
{[%clk 0:01:42.5]} 36... c4 {[%clk 0:02:17.6]} 37. g4 {[%clk 0:01:42.6]} 37...
f4 {[%clk 0:02:18.2]} 0-1

[Event "*** Titled Tuesday Blitz"]
[Site "Chess.com"]
[Date "2019.03.05"]
[Round "2"]
[White "wanyaland"]
[Black "Eliwood44"]
[Result "0-1"]
[WhiteElo "2105"]
[BlackElo "2219"]
[TimeControl "180+2"]
[EndTime "13:20:32 PST"]
[Termination "Eliwood44 won by resignation"]

1. d4 {[%clk 0:03:01.9]} 1... d5 {[%clk 0:02:57.6]} 2. c4 {[%clk 0:03:03.8]}
2... e6 {[%clk 0:02:58.4]} 3. Nc3 {[%clk 0:03:04.4]} 3... Nf6 {[%clk 0:02:58.3]}
4. Nf3 {[%clk 0:03:05.1]} 4... Be7 {[%clk 0:02:58.4]} 5. e3 {[%clk 0:03:06.2]}
5... O-O {[%clk 0:02:58.6]} 6. Bd3 {[%clk 0:02:57.1]} 6... dxc4 {[%clk
0:02:57.4]} 7. Bxc4 {[%clk 0:02:56.8]} 7... c5 {[%clk 0:02:59]} 8. O-O {[%clk
0:02:55.6]} 8... b6 {[%clk 0:02:59.7]} 9. Qe2 {[%clk 0:02:55.4]} 9... Bb7 {[%clk
0:02:58.5]} 10. Rd1 {[%clk 0:02:54.8]} 10... Nbd7 {[%clk 0:02:57.4]} 11. dxc5
{[%clk 0:02:52.8]} 11... Bxc5 {[%clk 0:02:49.6]} 12. h3 {[%clk 0:02:47.3]} 12...
Rc8 {[%clk 0:02:45.8]} 13. e4 {[%clk 0:02:47.3]} 13... Nh5 {[%clk 0:02:20.7]}
14. Ne5 {[%clk 0:02:39.8]} 14... Nxe5 {[%clk 0:02:00.6]} 15. Rxd8 {[%clk
0:02:37.3]} 15... Rfxd8 {[%clk 0:02:01]} 16. Bb3 {[%clk 0:02:34.9]} 16... Ng3
{[%clk 0:01:48]} 17. Qe1 {[%clk 0:02:25.9]} 17... Nd3 {[%clk 0:01:44.5]} 18. Qd1
{[%clk 0:02:07.7]} 18... Nxf2 {[%clk 0:01:40.9]} 19. Qxd8+ {[%clk 0:02:08]}
19... Rxd8 {[%clk 0:01:36.9]} 20. Kh2 {[%clk 0:02:08.7]} 20... Nf1+ {[%clk
0:01:34.9]} 21. Kg1 {[%clk 0:02:06.1]} 21... Ng3 {[%clk 0:01:24]} 22. Na4 {[%clk
0:02:05.9]} 22... Nfxe4+ {[%clk 0:01:17.3]} 23. Nxc5 {[%clk 0:02:04.4]} 23...
Nxc5 {[%clk 0:01:17.6]} 24. Be3 {[%clk 0:02:04.4]} 24... Nf5 {[%clk 0:01:12.9]}
25. Bxc5 {[%clk 0:02:03.5]} 25... bxc5 {[%clk 0:01:12.3]} 0-1

[Event "*** Titled Tuesday Blitz"]
[Site "Chess.com"]
[Date "2019.03.05"]
[Round "2"]
[White "Gabix_94"]
[Black "kacprekt"]
[Result "1-0"]
[WhiteElo "2486"]
[BlackElo "2276"]
[TimeControl "180+2"]
[EndTime "13:20:44 PST"]
[Termination "Gabix_94 won by resignation"]

1. e4 {[%clk 0:03:01.9]} 1... c6 {[%clk 0:02:56.9]} 2. d4 {[%clk 0:02:59]} 2...
d5 {[%clk 0:02:58.2]} 3. Nd2 {[%clk 0:03:00.9]} 3... dxe4 {[%clk 0:02:57.2]} 4.
Nxe4 {[%clk 0:03:02.8]} 4... Bf5 {[%clk 0:02:58.2]} 5. Ng3 {[%clk 0:03:03.7]}
5... Bg6 {[%clk 0:02:59.5]} 6. Bc4 {[%clk 0:03:04.9]} 6... e6 {[%clk 0:02:56.5]}
7. h4 {[%clk 0:03:05.1]} 7... h6 {[%clk 0:02:56.8]} 8. N1e2 {[%clk 0:03:05.5]}
8... Bd6 {[%clk 0:02:56.3]} 9. Nf4 {[%clk 0:03:06.2]} 9... Bxf4 {[%clk
0:02:57.5]} 10. Bxf4 {[%clk 0:03:08.1]} 10... Nf6 {[%clk 0:02:58.1]} 11. h5
{[%clk 0:03:07.7]} 11... Bh7 {[%clk 0:02:58.7]} 12. Qe2 {[%clk 0:03:04.3]} 12...
Nbd7 {[%clk 0:02:56.7]} 13. O-O-O {[%clk 0:02:38.7]} 13... Nd5 {[%clk
0:02:50.4]} 14. Bd2 {[%clk 0:02:34.6]} 14... N7b6 {[%clk 0:02:46.3]} 15. Bd3
{[%clk 0:02:35.7]} 15... Bxd3 {[%clk 0:02:46.1]} 16. Qxd3 {[%clk 0:02:37.6]}
16... Qc7 {[%clk 0:02:39.9]} 17. c4 {[%clk 0:02:35.4]} 17... Nf6 {[%clk
0:02:37]} 18. Kb1 {[%clk 0:02:32.5]} 18... O-O-O {[%clk 0:02:38]} 19. Bc3 {[%clk
0:02:29.6]} 19... c5 {[%clk 0:02:34.3]} 20. d5 {[%clk 0:02:21.1]} 20... exd5
{[%clk 0:02:27.9]} 21. Qf5+ {[%clk 0:02:20.8]} 21... Qd7 {[%clk 0:02:25.9]} 22.
Bxf6 {[%clk 0:02:17.1]} 22... Qxf5+ {[%clk 0:02:26]} 23. Nxf5 {[%clk 0:02:17.6]}
23... gxf6 {[%clk 0:02:27.9]} 24. cxd5 {[%clk 0:02:19]} 24... Rhe8 {[%clk
0:02:13.5]} 25. d6 {[%clk 0:02:16.3]} 25... Re5 {[%clk 0:02:05.1]} 26. Nxh6
{[%clk 0:02:16.5]} 26... Rf8 {[%clk 0:01:56.1]} 27. Ng4 {[%clk 0:02:15.8]} 27...
Rg5 {[%clk 0:01:55.7]} 28. Nxf6 {[%clk 0:02:16.1]} 28... Rxg2 {[%clk 0:01:55.1]}
29. d7+ {[%clk 0:02:14.8]} 29... Kc7 {[%clk 0:01:50.5]} 30. h6 {[%clk
0:02:11.3]} 30... Rxf2 {[%clk 0:01:47.8]} 31. h7 {[%clk 0:01:59]} 1-0

[Event "*** Titled Tuesday Blitz"]
[Site "Chess.com"]
[Date "2019.03.05"]
[Round "2"]
[White "LarissaSteenbekkers"]
[Black "salomez"]
[Result "0-1"]
[WhiteElo "2003"]
[BlackElo "2086"]
[TimeControl "180+2"]
[EndTime "13:20:51 PST"]
[Termination "salomez won by resignation"]

1. e4 {[%clk 0:03:01.9]} 1... d6 {[%clk 0:02:59]} 2. d4 {[%clk 0:02:57.1]} 2...
g6 {[%clk 0:02:56.9]} 3. Nc3 {[%clk 0:02:56.9]} 3... Bg7 {[%clk 0:02:57.7]} 4.
f4 {[%clk 0:02:57.4]} 4... e6 {[%clk 0:02:58.2]} 5. Nf3 {[%clk 0:02:57.9]} 5...
Ne7 {[%clk 0:02:59.1]} 6. Bd3 {[%clk 0:02:57.1]} 6... Nd7 {[%clk 0:02:59.2]} 7.
O-O {[%clk 0:02:55.7]} 7... b6 {[%clk 0:03:00.3]} 8. a4 {[%clk 0:02:55.2]} 8...
a6 {[%clk 0:02:59.8]} 9. Qe2 {[%clk 0:02:54.3]} 9... Bb7 {[%clk 0:03:00.7]} 10.
Bd2 {[%clk 0:02:52.8]} 10... O-O {[%clk 0:03:01.5]} 11. Rae1 {[%clk 0:02:51.2]}
11... Qb8 {[%clk 0:03:02.2]} 12. e5 {[%clk 0:02:49.7]} 12... Qa7 {[%clk
0:02:48.9]} 13. Kh1 {[%clk 0:02:45.7]} 13... dxe5 {[%clk 0:02:44.6]} 14. fxe5
{[%clk 0:02:38.7]} 14... c5 {[%clk 0:02:45.3]} 15. Be3 {[%clk 0:02:28.1]} 15...
cxd4 {[%clk 0:02:45.4]} 16. Bxd4 {[%clk 0:02:25.5]} 16... Nc6 {[%clk 0:02:44.9]}
17. Bf2 {[%clk 0:02:14.1]} 17... Ndxe5 {[%clk 0:02:45.5]} 18. Nxe5 {[%clk
0:02:10.6]} 18... Nxe5 {[%clk 0:02:46.4]} 19. a5 {[%clk 0:02:11.4]} 19... Nxd3
{[%clk 0:02:32]} 20. Qxd3 {[%clk 0:02:03.8]} 20... Rad8 {[%clk 0:02:32.5]} 21.
Qg3 {[%clk 0:02:00.3]} 21... Bd4 {[%clk 0:02:28.4]} 22. axb6 {[%clk 0:01:50.4]}
22... Qxb6 {[%clk 0:02:28.3]} 23. Qh4 {[%clk 0:01:38.9]} 23... Bxf2 {[%clk
0:02:27.2]} 24. Rxf2 {[%clk 0:01:37.7]} 24... Qxb2 {[%clk 0:02:23.2]} 25. Ne4
{[%clk 0:01:31.5]} 25... Bxe4 {[%clk 0:02:20]} 26. Qxe4 {[%clk 0:01:30.8]} 26...
Qd4 {[%clk 0:02:13.7]} 27. Qe2 {[%clk 0:01:26.1]} 27... a5 {[%clk 0:02:13.3]}
28. g3 {[%clk 0:01:22.8]} 28... a4 {[%clk 0:02:13.9]} 29. Rf4 {[%clk 0:01:22.2]}
29... Qd5+ {[%clk 0:02:13.8]} 30. Kg1 {[%clk 0:01:21.1]} 30... a3 {[%clk
0:02:13]} 31. Ra4 {[%clk 0:01:10.3]} 31... Ra8 {[%clk 0:02:13.4]} 32. Rxa8
{[%clk 0:01:07.6]} 32... Rxa8 {[%clk 0:02:13.9]} 0-1

[Event "*** Titled Tuesday Blitz"]
[Site "Chess.com"]
[Date "2019.03.05"]
[Round "2"]
[White "BasilSmash"]
[Black "Annawel"]
[Result "0-1"]
[WhiteElo "2304"]
[BlackElo "2901"]
[TimeControl "180+2"]
[EndTime "13:20:52 PST"]
[Termination "Annawel won by resignation"]

1. e4 {[%clk 0:02:58.7]} 1... g6 {[%clk 0:03:01]} 2. d4 {[%clk 0:02:55.5]} 2...
Bg7 {[%clk 0:03:02.5]} 3. Nf3 {[%clk 0:02:55.5]} 3... d6 {[%clk 0:03:04]} 4. Bc4
{[%clk 0:02:55.8]} 4... Nf6 {[%clk 0:03:04.5]} 5. Qe2 {[%clk 0:02:56.6]} 5...
O-O {[%clk 0:03:05.9]} 6. O-O {[%clk 0:02:56.7]} 6... Bg4 {[%clk 0:03:07.4]} 7.
Nbd2 {[%clk 0:02:57]} 7... Nc6 {[%clk 0:03:07.4]} 8. e5 {[%clk 0:02:57.3]} 8...
Nxd4 {[%clk 0:03:06.6]} 9. Nxd4 {[%clk 0:02:35.8]} 9... Bxe2 {[%clk 0:03:08.5]}
10. exf6 {[%clk 0:02:36.3]} 10... Bxf1 {[%clk 0:03:05.5]} 11. fxg7 {[%clk
0:02:34.2]} 11... Bxc4 {[%clk 0:03:00.2]} 12. gxf8=Q+ {[%clk 0:02:35]} 12...
Qxf8 {[%clk 0:03:02.1]} 13. Nxc4 {[%clk 0:02:34.7]} 13... e5 {[%clk 0:03:02.3]}
14. Nf3 {[%clk 0:02:31.8]} 14... e4 {[%clk 0:02:56.9]} 15. Ng5 {[%clk
0:02:29.1]} 15... f6 {[%clk 0:02:55.4]} 16. Nh3 {[%clk 0:02:23.6]} 16... d5
{[%clk 0:02:56.8]} 17. Ne3 {[%clk 0:02:23.6]} 17... d4 {[%clk 0:02:57.6]} 18.
Nd5 {[%clk 0:02:20.4]} 18... c6 {[%clk 0:02:54.9]} 19. Ndf4 {[%clk 0:02:17.4]}
19... Re8 {[%clk 0:02:52.9]} 20. Bd2 {[%clk 0:02:10.8]} 20... Qc5 {[%clk
0:02:50.7]} 21. Rc1 {[%clk 0:02:09.8]} 21... e3 {[%clk 0:02:49.1]} 22. Be1
{[%clk 0:02:10]} 22... g5 {[%clk 0:02:37.9]} 23. Nd3 {[%clk 0:02:10.5]} 23...
Qd5 {[%clk 0:02:39]} 24. b3 {[%clk 0:02:03.9]} 24... h6 {[%clk 0:02:40.2]} 25.
fxe3 {[%clk 0:01:56.5]} 25... dxe3 {[%clk 0:02:42.1]} 26. Bc3 {[%clk 0:01:57.3]}
26... f5 {[%clk 0:02:43.4]} 27. Kf1 {[%clk 0:01:52.7]} 27... e2+ {[%clk
0:02:42.5]} 28. Kg1 {[%clk 0:01:51.4]} 28... f4 {[%clk 0:02:36.3]} 29. Nhf2
{[%clk 0:01:51.8]} 29... f3 {[%clk 0:02:37]} 30. gxf3 {[%clk 0:01:51.5]} 30...
Qxf3 {[%clk 0:02:38.9]} 31. Re1 {[%clk 0:01:43.3]} 31... g4 {[%clk 0:02:38.3]}
32. Be5 {[%clk 0:01:42.8]} 32... h5 {[%clk 0:02:39.4]} 33. Bg3 {[%clk
0:01:42.6]} 33... b5 {[%clk 0:02:27.1]} 34. Ne5 {[%clk 0:01:38.7]} 34... Qe3
{[%clk 0:02:16.8]} 35. Nxc6 {[%clk 0:01:08.6]} 35... Qc3 {[%clk 0:02:17.4]} 0-1

[Event "*** Titled Tuesday Blitz"]
[Site "Chess.com"]
[Date "2019.03.05"]
[Round "2"]
[White "Divertissement"]
[Black "Pechen_Yeltsina"]
[Result "1-0"]
[WhiteElo "2745"]
[BlackElo "2650"]
[TimeControl "180+2"]
[EndTime "13:20:53 PST"]
[Termination "Divertissement won by resignation"]

1. c4 {[%clk 0:02:59.9]} 1... e5 {[%clk 0:03:00.2]} 2. Nc3 {[%clk 0:03:01.2]}
2... Nc6 {[%clk 0:03:01.1]} 3. g3 {[%clk 0:03:02.4]} 3... Bc5 {[%clk 0:03:01.1]}
4. Bg2 {[%clk 0:03:03.4]} 4... d6 {[%clk 0:03:01.9]} 5. e3 {[%clk 0:03:02.8]}
5... Be6 {[%clk 0:03:03.1]} 6. d3 {[%clk 0:03:03.5]} 6... Qd7 {[%clk 0:03:03.9]}
7. a3 {[%clk 0:03:03.4]} 7... Bb6 {[%clk 0:03:00.7]} 8. Nd5 {[%clk 0:03:00.4]}
8... Nge7 {[%clk 0:02:59.4]} 9. h3 {[%clk 0:02:56.3]} 9... h5 {[%clk 0:03:00.1]}
10. Ne2 {[%clk 0:02:56.1]} 10... f6 {[%clk 0:02:53.3]} 11. Nec3 {[%clk
0:02:54.9]} 11... Nd8 {[%clk 0:02:52.1]} 12. b4 {[%clk 0:02:51]} 12... c6 {[%clk
0:02:51.2]} 13. Nxb6 {[%clk 0:02:44.4]} 13... axb6 {[%clk 0:02:53.1]} 14. Bb2
{[%clk 0:02:41.5]} 14... Nf7 {[%clk 0:02:43.7]} 15. Qe2 {[%clk 0:02:40.2]} 15...
Ng5 {[%clk 0:02:44.1]} 16. h4 {[%clk 0:02:35.7]} 16... Bg4 {[%clk 0:02:44.6]}
17. f3 {[%clk 0:02:28.8]} 17... Nf5 {[%clk 0:02:37.8]} 18. Qf2 {[%clk
0:02:21.2]} 18... Nxf3+ {[%clk 0:02:32.8]} 19. Bxf3 {[%clk 0:02:22]} 19... Bxf3
{[%clk 0:02:26.7]} 20. Qxf3 {[%clk 0:02:23.9]} 20... O-O-O {[%clk 0:02:27.9]}
21. O-O-O {[%clk 0:02:21.9]} 21... d5 {[%clk 0:02:28.5]} 22. cxd5 {[%clk
0:02:22]} 22... cxd5 {[%clk 0:02:30.4]} 23. Kb1 {[%clk 0:02:22]} 23... d4 {[%clk
0:02:28.7]} 24. exd4 {[%clk 0:02:03.4]} 24... Nxd4 {[%clk 0:02:30.6]} 25. Qg2
{[%clk 0:02:04.8]} 25... Kb8 {[%clk 0:02:22.1]} 26. Ne4 {[%clk 0:02:04.8]} 26...
Rc8 {[%clk 0:02:23]} 27. Rc1 {[%clk 0:02:02.6]} 27... Qb5 {[%clk 0:02:23.6]} 28.
Rhd1 {[%clk 0:01:47.5]} 28... Rxc1+ {[%clk 0:02:18.9]} 29. Bxc1 {[%clk
0:01:46.9]} 29... Rc8 {[%clk 0:02:18.2]} 30. Nd6 {[%clk 0:01:26.8]} 30... Qc6
{[%clk 0:02:14]} 31. Qxc6 {[%clk 0:01:23]} 31... Rxc6 {[%clk 0:02:15.9]} 32. Ne4
{[%clk 0:01:17.9]} 32... f5 {[%clk 0:01:59.7]} 33. Ng5 {[%clk 0:01:17.9]} 33...
Ne2 {[%clk 0:02:01]} 34. Bb2 {[%clk 0:01:17]} 34... Nxg3 {[%clk 0:01:55.2]} 35.
Bxe5+ {[%clk 0:01:17.2]} 1-0

[Event "*** Titled Tuesday Blitz"]
[Site "Chess.com"]
[Date "2019.03.05"]
[Round "2"]
[White "Alexander_Moskalenko"]
[Black "Didici"]
[Result "1-0"]
[WhiteElo "2749"]
[BlackElo "2565"]
[TimeControl "180+2"]
[EndTime "13:21:01 PST"]
[Termination "Alexander_Moskalenko won by resignation"]

1. c4 {[%clk 0:03:01.9]} 1... f5 {[%clk 0:02:58.1]} 2. d4 {[%clk 0:03:01.2]}
2... Nf6 {[%clk 0:02:57.4]} 3. Nf3 {[%clk 0:03:00.5]} 3... g6 {[%clk 0:02:57.1]}
4. g3 {[%clk 0:03:02.4]} 4... Bg7 {[%clk 0:02:57.5]} 5. Bg2 {[%clk 0:03:03.2]}
5... O-O {[%clk 0:02:58.8]} 6. O-O {[%clk 0:03:04.8]} 6... d6 {[%clk 0:02:55.2]}
7. Nc3 {[%clk 0:03:06.7]} 7... e6 {[%clk 0:02:56]} 8. Qc2 {[%clk 0:03:03.5]}
8... Nc6 {[%clk 0:02:49.8]} 9. Rd1 {[%clk 0:03:04]} 9... Qe7 {[%clk 0:02:36.4]}
10. e4 {[%clk 0:03:04.7]} 10... fxe4 {[%clk 0:02:17.1]} 11. Nxe4 {[%clk
0:03:06.6]} 11... Nxe4 {[%clk 0:02:18.9]} 12. Qxe4 {[%clk 0:03:08.1]} 12... e5
{[%clk 0:02:20.2]} 13. dxe5 {[%clk 0:03:08.1]} 13... dxe5 {[%clk 0:02:05.4]} 14.
Be3 {[%clk 0:02:57.8]} 14... Kh8 {[%clk 0:01:49.5]} 15. h3 {[%clk 0:02:30.6]}
15... Bf5 {[%clk 0:01:05.5]} 16. Qh4 {[%clk 0:02:31]} 16... Bf6 {[%clk
0:00:46.8]} 17. Bg5 {[%clk 0:02:18.3]} 17... e4 {[%clk 0:00:45.9]} 18. Bxf6+
{[%clk 0:02:14.6]} 18... Rxf6 {[%clk 0:00:47.8]} 19. Ng5 {[%clk 0:02:16.1]}
19... Re8 {[%clk 0:00:38.4]} 20. Nxh7 {[%clk 0:02:15.1]} 20... Qxh7 {[%clk
0:00:26.6]} 21. Qxf6+ {[%clk 0:02:15.6]} 21... Kg8 {[%clk 0:00:28.5]} 22. g4
{[%clk 0:02:15.6]} 22... Bc8 {[%clk 0:00:25.5]} 23. Re1 {[%clk 0:02:05.9]} 23...
Ne5 {[%clk 0:00:18.9]} 24. Rxe4 {[%clk 0:02:05]} 1-0